[Event "Late-Titled-Tuesday-Blitz-June-18-2024"]
[Site "Chess.com"]
[Date "2024.06.18"]
[Round "3"]
[White "monomita"]
[Black "jbking07"]
[Result "0-1"]
[WhiteElo "2769"]
[BlackElo "2390"]
[TimeControl "180+1"]
[EndTime "14:28:22 PDT"]
[Termination "jbking07 won by checkmate"]

1. d4 {[%clk 0:03:00.9]} 1... Nf6 {[%clk 0:02:58.6]} 2. Nc3 {[%clk 0:03:01]}
2... d5 {[%clk 0:02:56.6]} 3. Bf4 {[%clk 0:03:01]} 3... a6 {[%clk 0:02:55.6]} 4.
e3 {[%clk 0:02:59.8]} 4... e6 {[%clk 0:02:56]} 5. g4 {[%clk 0:02:59.2]} 5... c5
{[%clk 0:02:43.9]} 6. g5 {[%clk 0:02:58.3]} 6... Nfd7 {[%clk 0:02:43.3]} 7. h4
{[%clk 0:02:56.4]} 7... Nc6 {[%clk 0:02:41.5]} 8. Nf3 {[%clk 0:02:56.8]} 8... b5
{[%clk 0:02:40]} 9. Ne2 {[%clk 0:02:56.9]} 9... Bb7 {[%clk 0:02:39.2]} 10. h5
{[%clk 0:02:54.4]} 10... h6 {[%clk 0:02:36]} 11. g6 {[%clk 0:02:48.5]} 11... f6
{[%clk 0:02:35.2]} 12. Bh3 {[%clk 0:02:45.1]} 12... Qe7 {[%clk 0:02:35.3]} 13.
Bg3 {[%clk 0:02:40.8]} 13... O-O-O {[%clk 0:02:33.9]} 14. Nf4 {[%clk 0:02:39.9]}
14... f5 {[%clk 0:02:31.1]} 15. Nd3 {[%clk 0:02:37.6]} 15... c4 {[%clk
0:02:27.5]} 16. Nde5 {[%clk 0:02:36.9]} 16... Nf6 {[%clk 0:02:26.3]} 17. Nf7
{[%clk 0:02:36.4]} 17... Rg8 {[%clk 0:02:25.1]} 18. Nxd8 {[%clk 0:02:36.4]}
18... Qxd8 {[%clk 0:02:24.7]} 19. Ne5 {[%clk 0:02:29.2]} 19... Nxe5 {[%clk
0:02:23.8]} 20. Bxe5 {[%clk 0:02:29.1]} 20... Bd6 {[%clk 0:02:22.6]} 21. Bxd6
{[%clk 0:02:26]} 21... Qxd6 {[%clk 0:02:23.5]} 22. c3 {[%clk 0:02:23.5]} 22...
Ne4 {[%clk 0:02:17.9]} 23. Bg2 {[%clk 0:02:21.6]} 23... Rf8 {[%clk 0:02:11.8]}
24. Bxe4 {[%clk 0:02:20.5]} 24... fxe4 {[%clk 0:02:12]} 25. Qg4 {[%clk
0:02:20.1]} 25... Rf5 {[%clk 0:02:11.4]} 26. Qg3 {[%clk 0:02:15.7]} 26... Qf8
{[%clk 0:02:04.9]} 27. O-O-O {[%clk 0:01:57.7]} 27... Kd7 {[%clk 0:02:04.2]} 28.
Rdf1 {[%clk 0:01:48.8]} 28... b4 {[%clk 0:01:59.6]} 29. cxb4 {[%clk 0:01:45.9]}
29... Qxb4 {[%clk 0:02:00.1]} 30. Qb8 {[%clk 0:01:05.8]} 30... Rf8 {[%clk
0:01:54.2]} 31. Qa7 {[%clk 0:01:04]} 31... c3 {[%clk 0:01:42.1]} 32. b3 {[%clk
0:01:02.1]} 32... Rc8 {[%clk 0:01:12]} 33. Kc2 {[%clk 0:00:55]} 33... Qb5 {[%clk
0:01:03.4]} 34. b4 {[%clk 0:00:30.6]} 34... Qe2+ {[%clk 0:00:57]} 35. Kb3 {[%clk
0:00:29.9]} 35... Qb2+ {[%clk 0:00:56.8]} 36. Ka4 {[%clk 0:00:30.6]} 36... Qxa2#
{[%clk 0:00:57.1]} 0-1

[Event "Late-Titled-Tuesday-Blitz-June-18-2024"]
[Site "Chess.com"]
[Date "2024.06.18"]
[Round "3"]
[White "Bob_2004"]
[Black "Zq1"]
[Result "1-0"]
[WhiteElo "2748"]
[BlackElo "2503"]
[TimeControl "180+1"]
[EndTime "14:28:22 PDT"]
[Termination "Bob_2004 won by resignation"]

1. d4 {[%clk 0:02:59.3]} 1... Nf6 {[%clk 0:02:56.7]} 2. c4 {[%clk 0:02:58.2]}
2... a6 {[%clk 0:02:56.8]} 3. Nc3 {[%clk 0:02:56.8]} 3... c5 {[%clk 0:02:56.5]}
4. d5 {[%clk 0:02:56.9]} 4... b5 {[%clk 0:02:55.9]} 5. cxb5 {[%clk 0:02:57.8]}
5... axb5 {[%clk 0:02:55.4]} 6. e4 {[%clk 0:02:58.4]} 6... b4 {[%clk 0:02:53.4]}
7. Nb5 {[%clk 0:02:59]} 7... d6 {[%clk 0:02:53.7]} 8. Bf4 {[%clk 0:02:59.5]}
8... g5 {[%clk 0:02:50]} 9. Bxg5 {[%clk 0:02:59.9]} 9... Nxe4 {[%clk 0:02:48.9]}
10. Bf4 {[%clk 0:03:00.5]} 10... Bg7 {[%clk 0:02:45.5]} 11. Qe2 {[%clk
0:03:00.9]} 11... Nf6 {[%clk 0:02:42.7]} 12. Nxd6+ {[%clk 0:03:01.5]} 12... Kf8
{[%clk 0:02:42.7]} 13. Nxc8 {[%clk 0:03:02.1]} 13... Qxc8 {[%clk 0:02:33.7]} 14.
Rd1 {[%clk 0:03:02.5]} 14... Rxa2 {[%clk 0:02:30.6]} 15. Qb5 {[%clk 0:02:55.4]}
15... Nbd7 {[%clk 0:02:25.2]} 16. Nf3 {[%clk 0:02:55.4]} 16... Rxb2 {[%clk
0:02:16]} 17. Qc6 {[%clk 0:02:53.4]} 17... Qd8 {[%clk 0:02:05.6]} 18. Bc7 {[%clk
0:02:48.1]} 18... Qe8 {[%clk 0:01:55.3]} 19. Bb5 {[%clk 0:02:48.1]} 19... Qc8
{[%clk 0:01:34.6]} 20. Ba6 {[%clk 0:02:39.8]} 20... Qe8 {[%clk 0:01:31.6]} 21.
Bb5 {[%clk 0:02:39.8]} 21... Qc8 {[%clk 0:01:31.3]} 22. O-O {[%clk 0:02:38]}
22... h5 {[%clk 0:01:31.1]} 23. Rfe1 {[%clk 0:02:34.1]} 23... Rh6 {[%clk
0:01:30.4]} 24. Rxe7 {[%clk 0:02:27.2]} 24... Kg8 {[%clk 0:00:50.9]} 25. Bf4
{[%clk 0:02:07.7]} 25... Qf8 {[%clk 0:00:32.6]} 26. Rxd7 {[%clk 0:02:07.7]}
26... Nxd7 {[%clk 0:00:29.9]} 27. Bxh6 {[%clk 0:02:08]} 27... Bxh6 {[%clk
0:00:22.7]} 28. Qxd7 {[%clk 0:02:07.7]} 28... c4 {[%clk 0:00:22.6]} 29. Bxc4
{[%clk 0:01:38.8]} 29... Qc5 {[%clk 0:00:21.7]} 30. Bf1 {[%clk 0:01:38.5]} 30...
Qxf2+ {[%clk 0:00:20.4]} 31. Kh1 {[%clk 0:01:39]} 31... Qc2 {[%clk 0:00:16.6]}
32. Qe8+ {[%clk 0:01:35.1]} 32... Bf8 {[%clk 0:00:14.7]} 33. Qe1 {[%clk
0:01:35.3]} 33... Qc3 {[%clk 0:00:06.3]} 34. Qg3+ {[%clk 0:01:26.1]} 34... Qg7
{[%clk 0:00:04.7]} 35. d6 {[%clk 0:01:25.6]} 35... Qxg3 {[%clk 0:00:03.5]} 36.
hxg3 {[%clk 0:01:26.5]} 36... b3 {[%clk 0:00:03.4]} 37. d7 {[%clk 0:01:26.7]}
37... Be7 {[%clk 0:00:03.7]} 38. d8=Q+ {[%clk 0:01:27.1]} 1-0

[Event "Late-Titled-Tuesday-Blitz-June-18-2024"]
[Site "Chess.com"]
[Date "2024.06.18"]
[Round "3"]
[White "arctic_t00"]
[Black "vi_pranav"]
[Result "0-1"]
[WhiteElo "2729"]
[BlackElo "3035"]
[TimeControl "180+1"]
[EndTime "14:28:27 PDT"]
[Termination "vi_pranav won by resignation"]

1. Nf3 {[%clk 0:03:00.9]} 1... Nf6 {[%clk 0:03:00]} 2. c4 {[%clk 0:03:00.2]}
2... e6 {[%clk 0:03:00.2]} 3. g3 {[%clk 0:03:00.4]} 3... a6 {[%clk 0:03:00.2]}
4. Bg2 {[%clk 0:02:59.8]} 4... b5 {[%clk 0:03:00.5]} 5. b3 {[%clk 0:02:58.6]}
5... Bb7 {[%clk 0:03:00.9]} 6. Bb2 {[%clk 0:02:58.6]} 6... Be7 {[%clk 0:03:01]}
7. O-O {[%clk 0:02:58.4]} 7... O-O {[%clk 0:03:01.2]} 8. Nc3 {[%clk 0:02:58]}
8... bxc4 {[%clk 0:02:59.1]} 9. bxc4 {[%clk 0:02:58.1]} 9... d6 {[%clk
0:02:59.7]} 10. Rb1 {[%clk 0:02:57]} 10... Nbd7 {[%clk 0:02:59.7]} 11. Ba1
{[%clk 0:02:48.4]} 11... Rb8 {[%clk 0:02:58.1]} 12. Qc2 {[%clk 0:02:45]} 12...
c5 {[%clk 0:02:55.4]} 13. d3 {[%clk 0:02:04.8]} 13... Qc7 {[%clk 0:02:50.2]} 14.
Rb3 {[%clk 0:02:00.2]} 14... Bc6 {[%clk 0:02:48.4]} 15. Rfb1 {[%clk 0:01:57.6]}
15... Rxb3 {[%clk 0:02:48]} 16. axb3 {[%clk 0:01:53]} 16... Rb8 {[%clk
0:02:43.8]} 17. h3 {[%clk 0:01:27.8]} 17... h6 {[%clk 0:02:40.8]} 18. d4 {[%clk
0:01:27.8]} 18... Bxf3 {[%clk 0:02:16.3]} 19. Bxf3 {[%clk 0:01:28.2]} 19... cxd4
{[%clk 0:02:16.9]} 20. Ne4 {[%clk 0:01:23.8]} 20... d5 {[%clk 0:02:06.3]} 21.
Nxf6+ {[%clk 0:01:05.2]} 21... Bxf6 {[%clk 0:02:07.2]} 22. Rd1 {[%clk
0:00:55.5]} 22... dxc4 {[%clk 0:01:50.7]} 23. bxc4 {[%clk 0:00:50.2]} 23... Qc5
{[%clk 0:01:40.2]} 24. Kg2 {[%clk 0:00:30.8]} 24... Rc8 {[%clk 0:01:10]} 25. Bb7
{[%clk 0:00:24.6]} 25... Rc7 {[%clk 0:01:08.4]} 26. Rb1 {[%clk 0:00:03.5]} 26...
d3 {[%clk 0:01:03.4]} 27. exd3 {[%clk 0:00:03]} 27... Bxa1 {[%clk 0:01:03.1]}
28. Bf3 {[%clk 0:00:02.2]} 28... Bd4 {[%clk 0:01:03]} 0-1

[Event "Late-Titled-Tuesday-Blitz-June-18-2024"]
[Site "Chess.com"]
[Date "2024.06.18"]
[Round "3"]
[White "Dexter_Dyke"]
[Black "larsmandreassen"]
[Result "1-0"]
[WhiteElo "2507"]
[BlackElo "2228"]
[TimeControl "180+1"]
[EndTime "14:28:29 PDT"]
[Termination "Dexter_Dyke won by resignation"]

1. e4 {[%clk 0:03:00]} 1... d5 {[%clk 0:03:00.1]} 2. exd5 {[%clk 0:02:59.8]}
2... Nf6 {[%clk 0:03:00.7]} 3. c4 {[%clk 0:02:59.6]} 3... e6 {[%clk 0:03:00.5]}
4. d4 {[%clk 0:02:59.7]} 4... exd5 {[%clk 0:03:00.4]} 5. Nc3 {[%clk 0:02:59.7]}
5... Bb4 {[%clk 0:03:00.8]} 6. Nf3 {[%clk 0:02:57.4]} 6... O-O {[%clk
0:03:00.2]} 7. Be2 {[%clk 0:02:57.6]} 7... dxc4 {[%clk 0:02:59.9]} 8. O-O {[%clk
0:02:58]} 8... Bg4 {[%clk 0:02:56.9]} 9. Bg5 {[%clk 0:02:56.3]} 9... Nc6 {[%clk
0:02:42]} 10. Ne4 {[%clk 0:02:35.9]} 10... Be7 {[%clk 0:02:38.6]} 11. Bxf6
{[%clk 0:02:26.6]} 11... Bxf6 {[%clk 0:02:37.9]} 12. d5 {[%clk 0:02:27]} 12...
Bxf3 {[%clk 0:02:10.5]} 13. Bxf3 {[%clk 0:02:11.8]} 13... Ne5 {[%clk 0:02:09.2]}
14. Be2 {[%clk 0:02:08.7]} 14... b5 {[%clk 0:02:04.4]} 15. a4 {[%clk 0:02:07.3]}
15... a6 {[%clk 0:01:59.3]} 16. f4 {[%clk 0:02:03.3]} 16... Nd7 {[%clk
0:01:46.4]} 17. Qc2 {[%clk 0:02:00.1]} 17... Bd4+ {[%clk 0:01:41]} 18. Kh1
{[%clk 0:01:59.9]} 18... Nf6 {[%clk 0:01:34]} 19. Rad1 {[%clk 0:01:56.4]} 19...
Bb6 {[%clk 0:01:25.2]} 20. Bf3 {[%clk 0:01:47.3]} 20... Rb8 {[%clk 0:00:52]} 21.
axb5 {[%clk 0:01:46]} 21... axb5 {[%clk 0:00:51.7]} 22. b3 {[%clk 0:01:38.5]}
22... cxb3 {[%clk 0:00:48.5]} 23. Qxb3 {[%clk 0:01:39.4]} 23... Nxe4 {[%clk
0:00:46.5]} 24. Bxe4 {[%clk 0:01:39.8]} 24... Bc5 {[%clk 0:00:42.7]} 25. Qc2
{[%clk 0:01:31.9]} 25... Bd6 {[%clk 0:00:27.5]} 26. Bxh7+ {[%clk 0:01:31.7]}
26... Kh8 {[%clk 0:00:28.2]} 27. Rf3 {[%clk 0:01:24.5]} 27... g6 {[%clk
0:00:15.4]} 28. Bxg6 {[%clk 0:01:22.8]} 28... fxg6 {[%clk 0:00:15.4]} 29. Qxg6
{[%clk 0:01:22.9]} 29... Qh4 {[%clk 0:00:10]} 30. Rh3 {[%clk 0:01:22.9]} 30...
Qxh3 {[%clk 0:00:10]} 31. gxh3 {[%clk 0:01:23.8]} 31... b4 {[%clk 0:00:08.8]}
32. Rg1 {[%clk 0:01:17.1]} 32... Bxf4 {[%clk 0:00:07.7]} 33. Qh5+ {[%clk
0:01:16.9]} 1-0

[Event "Late-Titled-Tuesday-Blitz-June-18-2024"]
[Site "Chess.com"]
[Date "2024.06.18"]
[Round "3"]
[White "Winner_7777"]
[Black "Josetricks"]
[Result "0-1"]
[WhiteElo "2554"]
[BlackElo "2391"]
[TimeControl "180+1"]
[EndTime "14:28:33 PDT"]
[Termination "Josetricks won on time"]

1. d4 {[%clk 0:03:00.9]} 1... g6 {[%clk 0:03:00.9]} 2. e4 {[%clk 0:02:55.7]}
2... Bg7 {[%clk 0:03:00.7]} 3. Nc3 {[%clk 0:02:54.3]} 3... c6 {[%clk 0:02:59.2]}
4. Be3 {[%clk 0:02:51]} 4... d5 {[%clk 0:02:59]} 5. f3 {[%clk 0:02:51.4]} 5...
Qb6 {[%clk 0:02:56.1]} 6. a3 {[%clk 0:02:46.5]} 6... e5 {[%clk 0:02:53.3]} 7.
Nge2 {[%clk 0:02:38.3]} 7... Ne7 {[%clk 0:02:49.3]} 8. g3 {[%clk 0:02:32.3]}
8... O-O {[%clk 0:02:45.1]} 9. Bg2 {[%clk 0:02:30.1]} 9... dxe4 {[%clk
0:02:41.8]} 10. fxe4 {[%clk 0:02:25.7]} 10... Rd8 {[%clk 0:02:31]} 11. Na4
{[%clk 0:02:18]} 11... Qa5+ {[%clk 0:02:26.1]} 12. c3 {[%clk 0:02:12.6]} 12...
Bg4 {[%clk 0:02:23.3]} 13. b4 {[%clk 0:02:04.1]} 13... Qb5 {[%clk 0:02:15.6]}
14. Nc5 {[%clk 0:00:57.9]} 14... exd4 {[%clk 0:02:10.9]} 15. cxd4 {[%clk
0:00:51.2]} 15... a5 {[%clk 0:02:04.5]} 16. Rb1 {[%clk 0:00:17.1]} 16... Nd7
{[%clk 0:01:47.4]} 17. Nxd7 {[%clk 0:00:10.9]} 17... Rxd7 {[%clk 0:01:44.6]} 18.
Nc3 {[%clk 0:00:07.3]} 18... Qc4 {[%clk 0:01:08.8]} 19. Qb3 {[%clk 0:00:06.5]}
19... Qd3 {[%clk 0:00:56.1]} 20. Kf2 {[%clk 0:00:06.8]} 20... Bxd4 {[%clk
0:00:52]} 21. Rhe1 {[%clk 0:00:07.3]} 21... axb4 {[%clk 0:00:49.9]} 22. axb4
{[%clk 0:00:05.4]} 22... Qxc3 {[%clk 0:00:48.3]} 0-1

[Event "Late-Titled-Tuesday-Blitz-June-18-2024"]
[Site "Chess.com"]
[Date "2024.06.18"]
[Round "3"]
[White "pouya21"]
[Black "nihalsarin"]
[Result "0-1"]
[WhiteElo "2808"]
[BlackElo "3204"]
[TimeControl "180+1"]
[EndTime "14:28:36 PDT"]
[Termination "nihalsarin won by resignation"]

1. e4 {[%clk 0:03:00.9]} 1... c6 {[%clk 0:02:56.4]} 2. d4 {[%clk 0:03:00.3]}
2... d5 {[%clk 0:02:57.3]} 3. e5 {[%clk 0:03:00.8]} 3... Bf5 {[%clk 0:02:56.4]}
4. g4 {[%clk 0:02:59.6]} 4... Bd7 {[%clk 0:02:52.3]} 5. Nc3 {[%clk 0:02:59.4]}
5... e6 {[%clk 0:02:49.6]} 6. Be3 {[%clk 0:02:59.8]} 6... c5 {[%clk 0:02:46.4]}
7. dxc5 {[%clk 0:03:00.7]} 7... Nc6 {[%clk 0:02:44.2]} 8. Nf3 {[%clk 0:02:52.6]}
8... h5 {[%clk 0:02:30.2]} 9. gxh5 {[%clk 0:02:43.4]} 9... Nh6 {[%clk
0:02:27.5]} 10. Bb5 {[%clk 0:02:38.5]} 10... Nf5 {[%clk 0:02:24.8]} 11. Bxc6
{[%clk 0:02:32.2]} 11... Bxc6 {[%clk 0:02:25.7]} 12. Bd4 {[%clk 0:02:31.3]}
12... Rxh5 {[%clk 0:02:23.2]} 13. a3 {[%clk 0:02:22.8]} 13... Rh3 {[%clk
0:02:22.4]} 14. Ng1 {[%clk 0:02:15.5]} 14... Rh4 {[%clk 0:02:20.3]} 15. Nf3
{[%clk 0:01:52]} 15... Re4+ {[%clk 0:02:03.6]} 16. Nxe4 {[%clk 0:01:42.9]} 16...
dxe4 {[%clk 0:02:03.5]} 17. Bc3 {[%clk 0:01:34.8]} 17... exf3 {[%clk 0:01:55.7]}
18. Qxd8+ {[%clk 0:01:34.3]} 18... Rxd8 {[%clk 0:01:56.6]} 19. b4 {[%clk
0:01:34.2]} 19... Nh4 {[%clk 0:01:26.2]} 20. O-O {[%clk 0:01:28]} 20... g5
{[%clk 0:01:15.8]} 21. Rfd1 {[%clk 0:01:24.9]} 21... Rxd1+ {[%clk 0:01:10.4]}
22. Rxd1 {[%clk 0:01:25.7]} 22... Bg7 {[%clk 0:01:11.3]} 23. Bb2 {[%clk
0:01:16.1]} 23... Ng6 {[%clk 0:01:06.7]} 24. c4 {[%clk 0:01:10.3]} 24... Bxe5
{[%clk 0:01:04]} 25. Bxe5 {[%clk 0:01:09.1]} 25... Nxe5 {[%clk 0:01:04.9]} 26.
Rd4 {[%clk 0:01:03.7]} 26... a6 {[%clk 0:01:04.8]} 27. h4 {[%clk 0:01:01.3]}
27... gxh4 {[%clk 0:01:04.9]} 28. Rxh4 {[%clk 0:01:01.9]} 28... Ke7 {[%clk
0:01:05.4]} 29. Kh2 {[%clk 0:00:58.6]} 29... Kf6 {[%clk 0:00:56.9]} 30. Rf4+
{[%clk 0:00:53.8]} 30... Kg5 {[%clk 0:00:54.7]} 31. Kg3 {[%clk 0:00:54.4]} 31...
f5 {[%clk 0:00:46.6]} 32. Rd4 {[%clk 0:00:54.3]} 32... Ng4 {[%clk 0:00:43.1]}
33. a4 {[%clk 0:00:45]} 33... e5 {[%clk 0:00:41.7]} 34. Rd2 {[%clk 0:00:43.2]}
34... f4+ {[%clk 0:00:38.7]} 35. Kh3 {[%clk 0:00:43.8]} 35... Bxa4 {[%clk
0:00:39.5]} 0-1

[Event "Late-Titled-Tuesday-Blitz-June-18-2024"]
[Site "Chess.com"]
[Date "2024.06.18"]
[Round "3"]
[White "HouseOfDurin"]
[Black "unkiyto"]
[Result "1-0"]
[WhiteElo "2330"]
[BlackElo "2619"]
[TimeControl "180+1"]
[EndTime "14:28:36 PDT"]
[Termination "HouseOfDurin won by resignation"]

1. d4 {[%clk 0:03:00.9]} 1... Nf6 {[%clk 0:02:59.9]} 2. Bg5 {[%clk 0:03:01.4]}
2... g6 {[%clk 0:03:00.8]} 3. Bxf6 {[%clk 0:03:01.5]} 3... exf6 {[%clk 0:03:01]}
4. c4 {[%clk 0:03:02.2]} 4... Bg7 {[%clk 0:03:00.7]} 5. Nc3 {[%clk 0:03:02.7]}
5... c6 {[%clk 0:03:01]} 6. g3 {[%clk 0:03:02.3]} 6... O-O {[%clk 0:03:00]} 7.
e3 {[%clk 0:03:01.9]} 7... Re8 {[%clk 0:02:59.6]} 8. Nge2 {[%clk 0:03:00.9]}
8... f5 {[%clk 0:02:59.8]} 9. Bg2 {[%clk 0:03:00.7]} 9... d6 {[%clk 0:02:44]}
10. O-O {[%clk 0:03:00.3]} 10... Be6 {[%clk 0:02:44.2]} 11. Qd3 {[%clk
0:02:59.9]} 11... d5 {[%clk 0:02:43.4]} 12. cxd5 {[%clk 0:02:59.1]} 12... cxd5
{[%clk 0:02:44.3]} 13. Nf4 {[%clk 0:02:56.9]} 13... Nc6 {[%clk 0:02:04.1]} 14.
Nfxd5 {[%clk 0:02:57.1]} 14... Qd6 {[%clk 0:02:03.1]} 15. a3 {[%clk 0:02:54.4]}
15... Rad8 {[%clk 0:02:00.2]} 16. b4 {[%clk 0:02:53.7]} 16... a6 {[%clk
0:01:57.8]} 17. Rfc1 {[%clk 0:02:38.5]} 17... Ne7 {[%clk 0:01:47.3]} 18. Nxe7+
{[%clk 0:02:33.7]} 18... Rxe7 {[%clk 0:01:48.2]} 19. Na4 {[%clk 0:02:27.2]}
19... b5 {[%clk 0:01:42.5]} 20. Nc5 {[%clk 0:02:26.7]} 20... Bc4 {[%clk
0:01:42.5]} 21. Qc2 {[%clk 0:02:22.4]} 21... Rde8 {[%clk 0:01:41.1]} 22. Bf1
{[%clk 0:02:21.8]} 22... Bd5 {[%clk 0:01:36.2]} 23. a4 {[%clk 0:02:20.9]} 23...
f4 {[%clk 0:01:33]} 24. gxf4 {[%clk 0:02:13.4]} 24... Bxd4 {[%clk 0:01:02.8]}
25. exd4 {[%clk 0:02:04.7]} 25... Qxf4 {[%clk 0:01:02.7]} 26. Ra3 {[%clk
0:02:03]} 26... Re1 {[%clk 0:00:55.9]} 27. Rxe1 {[%clk 0:01:36]} 27... Rxe1
{[%clk 0:00:56.8]} 28. Re3 {[%clk 0:01:06.6]} 28... Qg4+ {[%clk 0:00:28.7]} 29.
Rg3 {[%clk 0:01:06.5]} 29... Qxd4 {[%clk 0:00:28.6]} 30. Nd3 {[%clk 0:01:00.1]}
30... Re8 {[%clk 0:00:20]} 31. axb5 {[%clk 0:00:59.7]} 31... axb5 {[%clk
0:00:20.9]} 32. Qc5 {[%clk 0:00:55.3]} 32... Qe4 {[%clk 0:00:19.9]} 33. Bg2
{[%clk 0:00:42.2]} 33... Qe1+ {[%clk 0:00:20.2]} 34. Nxe1 {[%clk 0:00:41.5]} 1-0

[Event "Late-Titled-Tuesday-Blitz-June-18-2024"]
[Site "Chess.com"]
[Date "2024.06.18"]
[Round "3"]
[White "DeTimmerman"]
[Black "Rud_Makarian"]
[Result "0-1"]
[WhiteElo "2737"]
[BlackElo "3068"]
[TimeControl "180+1"]
[EndTime "14:28:37 PDT"]
[Termination "Rud_Makarian won on time"]

1. Nf3 {[%clk 0:03:00.4]} 1... Nf6 {[%clk 0:03:00.1]} 2. c4 {[%clk 0:03:00.3]}
2... e6 {[%clk 0:03:00.3]} 3. e3 {[%clk 0:02:59.2]} 3... d5 {[%clk 0:03:01.2]}
4. b3 {[%clk 0:02:57.9]} 4... b6 {[%clk 0:03:00.6]} 5. Bb2 {[%clk 0:02:58.1]}
5... dxc4 {[%clk 0:03:00.1]} 6. Bxc4 {[%clk 0:02:57.7]} 6... Bb7 {[%clk
0:02:59.7]} 7. O-O {[%clk 0:02:57.9]} 7... Be7 {[%clk 0:02:59]} 8. d4 {[%clk
0:02:57.5]} 8... O-O {[%clk 0:02:59.1]} 9. Nbd2 {[%clk 0:02:57.1]} 9... a6
{[%clk 0:02:59]} 10. Rc1 {[%clk 0:02:55.8]} 10... Nbd7 {[%clk 0:02:58.9]} 11.
Qc2 {[%clk 0:02:53.3]} 11... c5 {[%clk 0:02:52.6]} 12. Rfd1 {[%clk 0:02:50.5]}
12... b5 {[%clk 0:02:33.7]} 13. Bd3 {[%clk 0:02:50]} 13... cxd4 {[%clk
0:02:32.5]} 14. Nxd4 {[%clk 0:02:48.7]} 14... Rc8 {[%clk 0:02:28.1]} 15. Qb1
{[%clk 0:02:48.4]} 15... Qb6 {[%clk 0:02:26.4]} 16. a3 {[%clk 0:02:28.7]} 16...
h5 {[%clk 0:02:21.5]} 17. b4 {[%clk 0:02:26]} 17... Bd5 {[%clk 0:02:08.2]} 18.
N4b3 {[%clk 0:02:17.7]} 18... Qb8 {[%clk 0:02:00.7]} 19. h3 {[%clk 0:02:13.7]}
19... Ne5 {[%clk 0:01:56.1]} 20. Bf1 {[%clk 0:02:01.2]} 20... Neg4 {[%clk
0:01:33.2]} 21. hxg4 {[%clk 0:01:56.6]} 21... Nxg4 {[%clk 0:01:34.1]} 22. g3
{[%clk 0:01:44.4]} 22... Bh4 {[%clk 0:01:07]} 23. Bg2 {[%clk 0:00:51.1]} 23...
Bxg3 {[%clk 0:01:01.5]} 24. f4 {[%clk 0:00:11.8]} 24... Bf2+ {[%clk 0:00:57.8]}
25. Kf1 {[%clk 0:00:11.1]} 25... Bxe3 {[%clk 0:00:57]} 0-1

[Event "Late-Titled-Tuesday-Blitz-June-18-2024"]
[Site "Chess.com"]
[Date "2024.06.18"]
[Round "3"]
[White "yobdc"]
[Black "Adar_07"]
[Result "1-0"]
[WhiteElo "2564"]
[BlackElo "2814"]
[TimeControl "180+1"]
[EndTime "14:28:39 PDT"]
[Termination "yobdc won by checkmate"]

1. e4 {[%clk 0:02:44.9]} 1... c6 {[%clk 0:02:59.3]} 2. d4 {[%clk 0:02:44.7]}
2... d5 {[%clk 0:03:00.2]} 3. exd5 {[%clk 0:02:45.4]} 3... cxd5 {[%clk
0:03:01.1]} 4. Bd3 {[%clk 0:02:45.7]} 4... Nf6 {[%clk 0:03:01.8]} 5. h3 {[%clk
0:02:45.4]} 5... Nc6 {[%clk 0:03:02.7]} 6. c3 {[%clk 0:02:45.8]} 6... g6 {[%clk
0:03:03.6]} 7. Qc2 {[%clk 0:02:45.3]} 7... Qc7 {[%clk 0:02:51.9]} 8. Nf3 {[%clk
0:02:45.3]} 8... Rb8 {[%clk 0:02:43.2]} 9. a4 {[%clk 0:02:42.3]} 9... a6 {[%clk
0:02:42.1]} 10. O-O {[%clk 0:02:41.9]} 10... Bg7 {[%clk 0:02:40.7]} 11. Re1
{[%clk 0:02:41.3]} 11... O-O {[%clk 0:02:40.6]} 12. Qe2 {[%clk 0:02:24.4]} 12...
Bf5 {[%clk 0:02:32.4]} 13. Bxf5 {[%clk 0:02:23.6]} 13... gxf5 {[%clk 0:02:33.3]}
14. Ne5 {[%clk 0:02:18.4]} 14... Nxe5 {[%clk 0:02:31.8]} 15. dxe5 {[%clk
0:02:13.8]} 15... Ne4 {[%clk 0:02:28.1]} 16. Bf4 {[%clk 0:01:58]} 16... e6
{[%clk 0:02:23.4]} 17. Nd2 {[%clk 0:01:48.9]} 17... Rfc8 {[%clk 0:02:13.3]} 18.
Nf3 {[%clk 0:01:47.4]} 18... b5 {[%clk 0:02:10.6]} 19. axb5 {[%clk 0:01:47.2]}
19... axb5 {[%clk 0:02:11.5]} 20. Nd4 {[%clk 0:01:32.2]} 20... b4 {[%clk
0:02:09.7]} 21. f3 {[%clk 0:01:27.4]} 21... Nc5 {[%clk 0:01:59.5]} 22. Nb5
{[%clk 0:01:23.9]} 22... Qb6 {[%clk 0:01:57.2]} 23. Nd6 {[%clk 0:01:15.4]} 23...
Rc6 {[%clk 0:01:34.1]} 24. Kh2 {[%clk 0:01:14.9]} 24... bxc3 {[%clk 0:01:33.3]}
25. bxc3 {[%clk 0:01:15.8]} 25... Bf8 {[%clk 0:01:29.7]} 26. Reb1 {[%clk
0:01:08.5]} 26... Qxb1 {[%clk 0:01:23.7]} 27. Rxb1 {[%clk 0:01:09.4]} 27... Rxb1
{[%clk 0:01:24]} 28. Qf2 {[%clk 0:01:05]} 28... h6 {[%clk 0:00:57.8]} 29. Qh4
{[%clk 0:00:59]} 29... Nd3 {[%clk 0:00:54]} 30. Bxh6 {[%clk 0:00:49.4]} 30...
Bxh6 {[%clk 0:00:44.9]} 31. Qxh6 {[%clk 0:00:45.7]} 31... Nxe5 {[%clk
0:00:45.1]} 32. Ne8 {[%clk 0:00:37.9]} 32... Nxf3+ {[%clk 0:00:32.7]} 33. gxf3
{[%clk 0:00:36.3]} 33... Rb2+ {[%clk 0:00:31.8]} 34. Kg3 {[%clk 0:00:32.8]}
34... f4+ {[%clk 0:00:32.2]} 35. Kh4 {[%clk 0:00:31.9]} 35... e5 {[%clk
0:00:31.7]} 36. Qg7# {[%clk 0:00:31.8]} 1-0